bitfinex/quotes_BTCUSD_20250206
["timestamp","ask_amount","ask_price","bid_price","bid_amount"]
[1738830980095,1.02369428,98112.0,98111.0,0.00057071]
[1738830980700,1.12619793,98112.0,98111.0,0.00057071]
[1738830981103,1.02369428,98112.0,98111.0,0.00057071]
[1738830981907,1.02391856,98112.0,98111.0,0.00057071]
[1738830982615,0.87391856,98112.0,98111.0,0.00057071]
[1738830983877,0.87191856,98112.0,98111.0,0.00057071]
[1738830984232,0.87391856,98112.0,98111.0,0.00057071]
[1738830984379,0.83852045,98112.0,98111.0,0.00057071]
[1738830984579,0.84352045,98112.0,98111.0,0.00057071]
[1738830984792,0.83652045,98112.0,98111.0,0.00057071]
[1738830985155,0.84352045,98112.0,98111.0,0.00057071]
[1738830985442,0.83852045,98112.0,98111.0,0.00057071]
[1738830985641,0.83652045,98112.0,98111.0,0.00057071]
[1738830986068,0.83852045,98112.0,98111.0,0.00057071]
[1738830986725,0.86631382,98112.0,98111.0,0.00057071]
[1738830986933,0.87395382,98112.0,98111.0,0.00057071]
[1738830987551,0.86895382,98112.0,98111.0,0.00057071]
[1738830987770,0.86695382,98112.0,98111.0,0.00057071]
[1738830987970,0.84156045,98112.0,98111.0,0.00057071]
[1738830988132,0.84356045,98112.0,98111.0,0.00057071]
[1738830988534,0.84156045,98112.0,98111.0,0.00057071]
[1738830988957,0.84356045,98112.0,98111.0,0.00057071]
[1738830990019,0.84356045,98112.0,98111.0,0.00047071]
[1738830990245,0.82455393,98112.0,98111.0,0.00047071]
[1738830991799,0.66402793,98112.0,98111.0,0.00047071]
[1738830992014,0.69069986,98112.0,98111.0,0.00047071]
[1738830993235,0.68305986,98112.0,98111.0,0.00047071]
[1738830993439,0.60759986,98112.0,98111.0,0.00047071]
[1738830993637,0.61759986,98112.0,98111.0,0.00047071]
[1738830994229,0.76284586,98112.0,98111.0,0.00047071]
[1738830994497,0.77048586,98112.0,98111.0,0.00047071]
[1738830996749,0.61759986,98112.0,98111.0,0.00047071]
[1738830996978,0.61759986,98112.0,98111.0,0.15335871]
[1738830997170,0.61759986,98112.0,98111.0,0.15322953]
[1738830997375,0.61559986,98112.0,98111.0,0.15322953]
[1738830997727,0.61259986,98112.0,98111.0,0.00034153]
[1738830998130,0.61759986,98112.0,98111.0,0.00034153]
[1738830998652,0.69999986,98112.0,98111.0,0.00034153]
[1738830998826,0.85288586,98112.0,98111.0,0.00034153]
[1738830999152,0.83385393,98112.0,98111.0,0.00034153]
[1738831001275,0.85293095,98112.0,98111.0,0.00034153]
[1738831002031,1.00293095,98112.0,98111.0,0.00034153]
[1738831003905,0.99593095,98112.0,98111.0,0.00034153]
[1738831004055,1.00293095,98112.0,98111.0,0.00034153]
[1738831004522,1.00093095,98112.0,98111.0,0.00034153]
[1738831004716,1.00293095,98112.0,98111.0,0.00044833]
[1738831005345,1.00093095,98112.0,98111.0,0.00044833]
[1738831005605,1.1034346,98112.0,98111.0,0.00044833]
[1738831006366,1.0984346,98112.0,98111.0,0.00044833]
[1738831006717,1.1034346,98112.0,98111.0,0.00044833]
[1738831006851,0.481714,98094.0,98093.0,0.0001068]
[1738831007050,0.73871765,98094.0,98093.0,0.0001068]
[1738831007679,0.78830952,98094.0,98093.0,0.0001068]
[1738831008446,0.94030952,98094.0,98093.0,0.0001068]
[1738831009211,1.27040952,98094.0,98093.0,0.0001068]
[1738831010367,1.27040952,98094.0,98063.0,0.08155839]
[1738831010368,0.2,98058.0,98047.0,0.09158096]
[1738831010566,1.16598365,98058.0,98047.0,0.09158096]
[1738831010879,1.01598365,98058.0,98039.0,0.0062335]
[1738831011076,1.06561552,98058.0,98039.0,0.0062335]
[1738831011290,0.63139552,98058.0,98040.0,0.1396762]
[1738831011503,0.53139552,98058.0,98057.0,0.02061857]
[1738831011706,0.04959187,98058.0,98057.0,0.0001068]
[1738831011970,0.05005674,98058.0,98057.0,0.0001068]
[1738831012173,0.05205674,98058.0,98057.0,0.0001068]
[1738831012375,0.00246487,98058.0,98057.0,0.0001068]
[1738831012619,0.20496852,98058.0,98057.0,0.0001068]
[1738831013112,0.20496852,98058.0,98057.0,0.02061857]
[1738831013341,0.10496852,98058.0,98057.0,0.0001068]
[1738831013520,0.00046487,98058.0,98057.0,0.0001068]
[1738831013720,0.00246487,98058.0,98057.0,0.0001068]
[1738831014221,0.00046487,98058.0,98057.0,0.0001068]
[1738831015923,0.00046487,98058.0,98057.0,0.08159519]
[1738831016057,0.00046487,98058.0,98057.0,0.28822655]
[1738831016279,0.00046487,98058.0,98057.0,0.48119884]
[1738831016476,0.00046487,98058.0,98057.0,0.39971045]
[1738831016662,0.0098446,98091.0,98090.0,0.15292]
[1738831016856,0.0098446,98091.0,98090.0,0.168212]
[1738831017063,4.648e-05,98097.0,98096.0,0.152911]
[1738831017837,0.20255013,98097.0,98087.0,0.1396762]
[1738831017968,0.10250365,98096.0,98087.0,0.1396762]
[1738831018397,0.10250365,98096.0,98094.0,0.152913]
[1738831018813,0.10250365,98096.0,98093.0,0.152915]
[1738831019293,0.10250365,98096.0,98094.0,0.152913]
[1738831020193,0.10850365,98096.0,98094.0,0.152913]
[1738831020433,0.10450365,98096.0,98094.0,0.152913]
[1738831020774,0.10750365,98096.0,98094.0,0.152913]
[1738831020973,0.10250365,98096.0,98094.0,0.152913]
[1738831021175,0.10450365,98096.0,98094.0,0.152913]
[1738831021371,0.10850365,98096.0,98094.0,0.152913]
[1738831021714,0.10250365,98096.0,98094.0,0.152913]
[1738831023008,0.10450365,98096.0,98094.0,0.152913]
[1738831023215,0.10850365,98096.0,98094.0,0.152913]
[1738831023427,0.10450365,98096.0,98094.0,0.152913]
[1738831023618,0.10250365,98096.0,98094.0,0.152913]
[1738831023800,0.10850365,98096.0,98094.0,0.152913]
[1738831024391,0.10250365,98096.0,98094.0,0.152913]
[1738831024593,0.10450365,98096.0,98094.0,0.152913]
[1738831024894,0.10850365,98096.0,98094.0,0.152913]
[1738831025906,0.10850365,98096.0,98092.0,0.203888]
[1738831026114,0.10850365,98096.0,98091.0,0.152919]
[1738831026358,0.10850365,98096.0,98088.0,0.203898]
[1738831026359,0.10850365,98096.0,98088.0,0.152923]
[1738831026538,0.10850365,98096.0,98089.0,0.152922]
[1738831026740,0.10650365,98096.0,98089.0,0.152922]
[1738831027173,0.10850365,98096.0,98089.0,0.152922]
[1738831027371,0.10450365,98096.0,98087.0,0.1396762]
[1738831027575,0.1,98085.0,98080.0,0.1396762]
[1738831027774,0.10250365,98084.0,98074.0,0.152945]
[1738831028182,0.11244895,98084.0,98074.0,0.152945]
[1738831028373,0.11244895,98084.0,98071.0,0.203931]
[1738831028580,0.11244895,98084.0,98073.0,0.28541639]
[1738831028848,0.11244895,98084.0,98080.0,0.152936]
[1738831029201,0.10250365,98084.0,98080.0,0.152936]
[1738831029833,0.10250365,98084.0,98083.0,0.152931]
[1738831030394,0.10350365,98084.0,98083.0,0.152931]
[1738831031034,0.10250365,98084.0,98083.0,0.152931]
[1738831031231,0.10350365,98084.0,98083.0,0.152931]
[1738831031429,0.10550365,98084.0,98083.0,0.152931]
[1738831031634,0.003,98084.0,98083.0,0.152931]
[1738831032515,0.001,98084.0,98083.0,0.152931]
[1738831032775,0.001,98084.0,98083.0,0.17695038]
[1738831033185,0.0002245,98096.0,98095.0,0.152912]
[1738831034657,0.0012245,98096.0,98095.0,0.152912]
[1738831035056,0.0022245,98096.0,98095.0,0.152912]
[1738831036524,0.0022245,98096.0,98095.0,0.16330436]
[1738831039743,0.0018245,98096.0,98095.0,0.16330436]
[1738831040640,0.002049,98096.0,98095.0,0.16330436]
[1738831040980,0.001049,98096.0,98095.0,0.16330436]
[1738831041442,0.0002245,98096.0,98095.0,0.16330436]
[1738831041655,0.0012245,98096.0,98095.0,0.16330436]
[1738831045864,0.0099825,98100.0,98095.0,0.01039236]
[1738831046089,0.0099825,98100.0,98099.0,0.152906]
[1738831046241,0.1545,98111.0,98107.0,0.152892]
[1738831046442,0.10250365,98110.0,98101.0,0.1396762]
[1738831046726,0.10250365,98110.0,98107.0,0.152893]
[1738831048492,0.10850365,98110.0,98107.0,0.152893]
[1738831048693,0.10850365,98110.0,98102.0,0.01398152]
[1738831048947,0.10850365,98110.0,98109.0,0.152891]
[1738831049300,0.11050365,98110.0,98109.0,0.152891]
[1738831049481,0.11050365,98110.0,98108.0,0.152892]
[1738831049689,0.10850365,98110.0,98107.0,0.203857]
[1738831049915,0.11050365,98110.0,98107.0,0.203857]
[1738831050056,0.10450365,98110.0,98107.0,0.203857]
[1738831050404,0.10850365,98110.0,98109.0,0.001]
[1738831050607,0.10250365,98110.0,98108.0,0.04490331]
[1738831050742,0.10450365,98110.0,98108.0,0.19779531]
[1738831050941,0.11050365,98110.0,98108.0,0.19779531]
[1738831051462,0.11650365,98110.0,98109.0,0.001]
[1738831051665,0.11050365,98110.0,98109.0,0.001]
[1738831051870,0.10450365,98110.0,98108.0,0.04490331]
[1738831052095,0.10472815,98110.0,98108.0,0.19779431]
[1738831052695,0.10872815,98110.0,98109.0,0.16687252]
[1738831053058,0.11072815,98110.0,98109.0,0.16687252]
[1738831053884,0.10472815,98110.0,98109.0,0.16687252]
[1738831054084,0.10472815,98110.0,98100.0,0.1396762]
[1738831054286,0.11072815,98110.0,98101.0,0.203871]
[1738831054937,0.11072815,98110.0,98105.0,0.152896]
[1738831055140,0.10472815,98110.0,98106.0,0.152895]
[1738831055545,0.11072815,98110.0,98103.0,0.203866]
[1738831055751,0.10272815,98110.0,98103.0,0.203866]
[1738831056111,0.11072815,98110.0,98104.0,0.152898]
[1738831056734,0.10872815,98110.0,98104.0,0.152898]
[1738831056938,0.11072815,98110.0,98104.0,0.152898]
[1738831057368,0.10272815,98110.0,98104.0,0.152898]
[1738831057829,0.11072815,98110.0,98104.0,0.152898]
[1738831058012,0.10472815,98110.0,98104.0,0.152898]
[1738831058170,0.10472815,98110.0,98105.0,0.152896]
[1738831058368,0.11072815,98110.0,98104.0,0.152897]
[1738831058615,0.11072815,98110.0,98105.0,0.152897]
[1738831058999,0.10872815,98110.0,98105.0,0.152897]
[1738831059212,0.10272815,98110.0,98107.0,0.152893]
[1738831059504,0.10472815,98110.0,98104.0,0.203864]
[1738831060025,0.10272815,98110.0,98109.0,0.152891]
[1738831060423,0.10472815,98110.0,98109.0,0.152891]
[1738831060642,0.11072815,98110.0,98109.0,0.152891]
[1738831060857,0.10872815,98110.0,98109.0,0.152891]
[1738831061146,0.11472815,98110.0,98109.0,0.152891]
[1738831061280,0.10272815,98110.0,98109.0,0.152891]
[1738831061701,0.10872815,98110.0,98109.0,0.152891]
[1738831062166,0.11072815,98110.0,98109.0,0.152891]
[1738831064595,0.11072815,98110.0,98104.0,0.01000329]
[1738831064854,0.11072815,98110.0,98100.0,0.343656]
[1738831065032,0.11072815,98110.0,98106.0,0.152894]
[1738831065389,0.10472815,98110.0,98106.0,0.152894]
[1738831065793,0.10272815,98110.0,98106.0,0.152894]
[1738831065989,0.10472815,98110.0,98106.0,0.152894]
[1738831066228,0.1,98109.0,98106.0,0.152894]
[1738831066416,0.20250365,98109.0,98108.0,0.152892]
[1738831067571,0.20750365,98109.0,98108.0,0.152892]
[1738831067750,0.20450365,98109.0,98108.0,0.152892]
[1738831068110,0.20950365,98109.0,98108.0,0.152892]
[1738831074264,0.2285757,98109.0,98108.0,0.152892]
[1738831075519,0.20950365,98109.0,98108.0,0.152892]
[1738831076630,0.107,98109.0,98108.0,0.152892]
[1738831076836,0.007,98109.0,98108.0,0.152892]
[1738831077038,0.007,98109.0,98108.0,0.175892]
[1738831077236,0.007,98109.0,98108.0,0.17691108]
[1738831077802,0.002,98109.0,98108.0,0.17691108]
[1738831078147,0.005,98109.0,98108.0,0.17691108]
[1738831078352,0.005,98109.0,98108.0,0.28788346]
[1738831078553,0.005,98109.0,98108.0,0.257592]
[1738831078955,0.0002245,98110.0,98109.0,0.023]
[1738831080207,0.0002245,98110.0,98109.0,0.02401902]
[1738831080782,0.0012245,98110.0,98109.0,0.03001902]
[1738831081192,0.0012245,98110.0,98109.0,0.18001902]
[1738831081433,0.0012245,98110.0,98109.0,0.28252267]
[1738831081657,5e-07,98110.0,98109.0,0.31174945]
[1738831083334,5e-07,98110.0,98109.0,0.28150365]
[1738831085384,5e-07,98110.0,98109.0,0.43439465]
[1738831087217,5e-07,98110.0,98109.0,0.331891]
[1738831088734,5e-07,98110.0,98109.0,0.3319978]
[1738831088935,0.00022478,98110.0,98109.0,0.3319978]
[1738831096387,0.00022478,98110.0,98109.0,0.1529978]
[1738831096683,0.00022478,98110.0,98109.0,0.15401685]
[1738831102491,0.00022478,98110.0,98109.0,0.17701685]
[1738831102699,0.01022428,98112.0,98110.0,0.023]
[1738831102821,0.01022428,98112.0,98111.0,0.17690702]
[1738831104281,0.01122428,98112.0,98111.0,0.17790702]
[1738831104574,0.01109375,98112.0,98111.0,0.17790702]
[1738831106810,0.01109375,98112.0,98111.0,0.176888]
[1738831108292,0.01109375,98112.0,98111.0,0.16434177]
[1738831108425,0.08609375,98112.0,98111.0,0.16434177]
[1738831108631,0.01109375,98112.0,98111.0,0.16434177]
[1738831111421,0.01109375,98112.0,98111.0,0.19461994]
[1738831117683,7.5e-07,98112.0,98111.0,0.21863905]
[1738831117826,7.5e-07,98112.0,98111.0,0.21761994]
[1738831123574,0.00022503,98112.0,98111.0,0.21761994]
[1738831135250,0.00022503,98112.0,98111.0,0.22749194]
[1738831135738,0.00022503,98112.0,98111.0,0.22759874]
[1738831142650,0.0811,98139.0,98121.0,0.15]
[1738831142874,0.0811,98150.0,98149.0,0.152828]
[1738831144132,0.08114653,98150.0,98149.0,0.152828]
[1738831144579,0.08714653,98150.0,98149.0,0.152828]
[1738831145347,0.08914653,98150.0,98149.0,0.152828]
[1738831145750,0.13844653,98150.0,98149.0,0.152828]
[1738831147547,0.13867081,98150.0,98149.0,0.152828]
[1738831148198,0.00827081,98150.0,98149.0,0.16391635]
[1738831148427,0.00627081,98150.0,98149.0,0.16391621]
[1738831148760,0.00227081,98150.0,98149.0,0.1869162]
[1738831148955,0.00022428,98152.0,98151.0,0.302825]
[1738831148956,3.7e-07,98152.0,98151.0,0.302825]
[1738831149125,3.7e-07,98152.0,98151.0,0.42832865]
[1738831149344,3.7e-07,98152.0,98151.0,0.45856094]
[1738831149515,0.00022428,98167.0,98166.0,0.152802]
[1738831151424,0.00068938,98167.0,98166.0,0.154802]
[1738831152063,0.00068938,98167.0,98166.0,0.15682056]
[1738831152464,0.00068938,98167.0,98166.0,0.155802]
[1738831153570,0.00068938,98167.0,98166.0,0.16620085]
[1738831182610,0.00068938,98167.0,98166.0,0.16721941]
[1738831183017,0.00068938,98167.0,98166.0,0.19747725]
[1738831183265,0.00068938,98167.0,98166.0,0.22047725]
[1738831183465,0.00068938,98167.0,98166.0,0.21845869]
[1738831183663,0.00068938,98167.0,98166.0,0.21945869]
[1738831184246,0.00068938,98167.0,98166.0,0.21845869]
[1738831185652,0.00068938,98167.0,98166.0,0.21945869]
[1738831194361,0.00068938,98167.0,98166.0,0.31071325]
[1738831198401,0.00068938,98167.0,98166.0,0.21945869]
[1738831199050,0.00068938,98167.0,98166.0,0.19645869]
[1738831201804,0.00068938,98167.0,98166.0,0.16620085]
[1738831203845,0.00068938,98167.0,98166.0,0.19647241]
[1738831205180,0.00068938,98167.0,98166.0,0.16620085]
[1738831206146,0.00068938,98167.0,98166.0,0.19647389]
[1738831206385,0.00068938,98167.0,98166.0,0.16620085]
[1738831206652,0.00068938,98167.0,98166.0,0.19647437]
[1738831206913,0.00068938,98167.0,98166.0,0.16620085]
[1738831209897,0.00068938,98167.0,98166.0,0.19647651]
[1738831210400,0.0456,98184.0,98182.0,0.152777]
[1738831210646,0.00036373,98183.0,98182.0,0.15379542]
[1738831211606,0.00436373,98183.0,98182.0,0.15379542]
[1738831211847,0.00136373,98183.0,98182.0,0.15379542]
[1738831212143,0.00136373,98183.0,98182.0,0.17679542]
[1738831212380,0.00036373,98183.0,98182.0,0.17679542]
[1738831213759,0.00136373,98183.0,98182.0,0.17679542]
[1738831213960,0.00036373,98183.0,98182.0,0.17679542]
[1738831214182,0.00036373,98183.0,98182.0,0.44129907]
[1738831214534,0.01666667,98189.0,98188.0,0.175768]
[1738831214716,0.01666667,98189.0,98188.0,0.30954206]
[1738831214922,0.01666667,98189.0,98188.0,0.30852382]
[1738831216110,0.01666667,98189.0,98188.0,0.18302017]
[1738831216478,0.01666667,98189.0,98188.0,0.15378627]
[1738831219338,6.7e-07,98189.0,98188.0,0.27928992]
[1738831219540,9e-08,98191.0,98190.0,0.152765]
[1738831219756,0.0009812,98202.0,98192.0,0.152761]
[1738831219757,8.7e-07,98195.0,98192.0,0.152761]
[1738831219954,8.7e-07,98195.0,98193.0,0.02401821]
[1738831220342,8.7e-07,98195.0,98194.0,0.152758]
[1738831220516,8.7e-07,98195.0,98194.0,0.15377619]
[1738831221497,8.7e-07,98195.0,98194.0,0.15577619]
[1738831221840,0.00100087,98195.0,98194.0,0.16177619]
[1738831223666,0.00100087,98195.0,98194.0,0.160758]
[1738831227493,0.00100087,98195.0,98194.0,0.17082066]
[1738831229743,0.00100087,98195.0,98194.0,0.19483887]
[1738831237490,0.00100087,98195.0,98194.0,0.19382066]
[1738831240050,0.00100087,98195.0,98194.0,0.19483887]
[1738831240946,0.00100087,98195.0,98194.0,0.19506294]
[1738831246285,0.00100087,98195.0,98194.0,0.22533278]
[1738831246524,0.00100087,98195.0,98194.0,0.22431457]
[1738831252332,8.7e-07,98195.0,98194.0,0.32681822]
[1738831252737,5.7e-07,98195.0,98194.0,0.32681822]
[1738831258102,0.0009927,98213.0,98194.0,0.47681822]
[1738831258303,0.1,98243.0,98215.0,0.023]
[1738831258475,0.2,98250.0,98248.0,0.152674]
[1738831258699,0.11058056,98249.0,98248.0,0.152674]
[1738831259091,0.10306056,98249.0,98248.0,0.152674]
[1738831259273,0.1,98243.0,98242.0,0.152684]
[1738831259457,0.20250365,98243.0,98238.0,0.203585]
[1738831259655,0.20250365,98242.0,98223.0,0.08148839]
[1738831259853,0.20250365,98242.0,98239.0,0.152688]
[1738831260103,0.20250365,98242.0,98236.0,0.20359]
[1738831260306,0.1,98231.0,98228.0,0.152705]
[1738831260451,0.10250365,98230.0,98225.0,0.08148839]
[1738831260649,0.11002365,98230.0,98229.0,0.152704]
[1738831261498,0.23462365,98230.0,98229.0,0.152704]
[1738831261683,0.23862365,98230.0,98229.0,0.152704]
[1738831262120,0.23462365,98230.0,98229.0,0.152704]
[1738831262302,0.23862365,98230.0,98229.0,0.152704]
[1738831262506,0.2234,98223.0,98222.0,0.20362]
[1738831262703,0.2234,98223.0,98222.0,0.356335]
[1738831263661,0.2244,98223.0,98222.0,0.356335]
[1738831264129,0.2254,98223.0,98222.0,0.356335]
[1738831265053,0.2254,98223.0,98218.0,0.203627]
[1738831265054,0.125,98221.0,98218.0,0.203628]
[1738831265278,0.22750365,98220.0,98219.0,0.152719]
[1738831265692,0.22750365,98220.0,98217.0,0.00022407]
[1738831265693,0.1247,98219.0,98217.0,0.00022407]
[1738831265843,0.22320365,98218.0,98217.0,0.00022407]
[1738831267120,0.22334307,98218.0,98217.0,0.15294707]
[1738831267650,0.22334307,98218.0,98217.0,0.00022407]
[1738831268267,0.23134307,98218.0,98217.0,0.00122407]
[1738831268669,0.22334307,98218.0,98217.0,0.00022407]
[1738831269127,0.23034307,98218.0,98217.0,0.00022407]
[1738831270401,0.55544307,98218.0,98217.0,0.00022407]
[1738831270523,0.55044307,98218.0,98217.0,0.00022407]
[1738831270871,0.55544307,98218.0,98217.0,0.00022407]
[1738831271582,0.55544307,98218.0,98217.0,0.15294707]
[1738831271751,0.55344307,98218.0,98217.0,0.15294707]
[1738831272096,0.55544307,98218.0,98217.0,0.15294707]
[1738831278827,0.55544307,98218.0,98217.0,0.00022407]
[1738831282874,0.56296307,98218.0,98217.0,0.00022407]
[1738831283076,0.56296307,98218.0,98217.0,0.15294707]
[1738831284839,0.56296307,98218.0,98217.0,0.00022407]
[1738831285042,0.56296307,98218.0,98217.0,0.15294707]
[1738831285240,0.56296307,98218.0,98217.0,0.00022407]
[1738831286583,0.58197865,98218.0,98217.0,0.00022407]
[1738831288923,0.58208545,98218.0,98217.0,0.00022407]
[1738831292296,0.58208545,98218.0,98217.0,0.15294707]
[1738831293692,0.58208545,98218.0,98217.0,0.00022407]
[1738831295714,0.88480645,98218.0,98217.0,0.00022407]
[1738831296811,0.88280645,98218.0,98217.0,0.00022407]
[1738831296997,0.88480645,98218.0,98217.0,0.00022407]
[1738831297364,0.88280645,98218.0,98217.0,0.01018407]
[1738831297707,0.91125213,98218.0,98217.0,0.01018407]
[1738831297908,0.91725213,98218.0,98217.0,0.01118407]
[1738831298112,0.91125213,98218.0,98217.0,0.01018407]
[1738831298438,0.91125213,98218.0,98217.0,0.01118407]
[1738831298569,0.88780645,98218.0,98217.0,0.01118407]
[1738831299182,0.73508545,98218.0,98217.0,0.01118407]
[1738831299607,0.88480645,98218.0,98217.0,0.01118407]
[1738831299920,0.88680645,98218.0,98217.0,0.01118407]
[1738831300153,0.87980645,98218.0,98217.0,0.01018407]
[1738831300291,0.88380645,98218.0,98217.0,0.01018407]
[1738831300712,0.87980645,98218.0,98217.0,0.01018407]
[1738831301279,0.87780645,98218.0,98217.0,0.01018407]
[1738831301474,0.88580645,98218.0,98217.0,0.01018407]
[1738831301888,0.87980645,98218.0,98217.0,0.01018407]
[1738831302575,0.91023458,98218.0,98217.0,0.01018407]
[1738831303135,0.91523458,98218.0,98217.0,0.01118407]
[1738831303362,0.90823458,98218.0,98217.0,0.01018407]
[1738831303566,0.91023458,98218.0,98217.0,0.01018407]
[1738831303762,0.91723458,98218.0,98217.0,0.01118407]
[1738831304225,0.91523458,98218.0,98217.0,0.01118407]
[1738831304439,0.91723458,98218.0,98217.0,0.01118407]
[1738831306322,1.01973823,98218.0,98217.0,0.01118407]
[1738831306710,0.91723458,98218.0,98217.0,0.01118407]
[1738831324367,0.2,98195.0,98194.0,0.00022407]
[1738831324663,0.30250365,98195.0,98194.0,0.20390107]
[1738831326280,0.35194736,98195.0,98194.0,0.20390107]
[1738831326465,0.35394736,98195.0,98194.0,0.20390107]
[1738831330459,0.35394736,98195.0,98194.0,0.00022407]
[1738831335054,0.35394736,98195.0,98194.0,0.15298207]
[1738831339642,0.35394736,98195.0,98194.0,0.00022407]
[1738831342023,0.50670436,98195.0,98194.0,0.00022407]
[1738831342228,1.01589436,98195.0,98194.0,0.00022407]
[1738831343281,1.01389436,98195.0,98194.0,0.00022407]
[1738831343462,1.01789436,98195.0,98194.0,0.00022407]
[1738831344581,1.01889436,98195.0,98194.0,0.00022407]
[1738831344939,1.34399436,98195.0,98194.0,0.00022407]
[1738831354305,1.19123736,98195.0,98194.0,0.00022407]
[1738831354848,1.34399436,98195.0,98194.0,0.00022407]
[1738831354993,1.19123736,98195.0,98194.0,0.00022407]
[1738831356650,1.34123736,98195.0,98194.0,0.00022407]
[1738831356891,1.57529436,98195.0,98194.0,0.00022407]
[1738831357096,1.72609801,98195.0,98194.0,0.00022407]
[1738831357650,1.72509801,98195.0,98194.0,0.00022407]
[1738831357831,1.72709801,98195.0,98194.0,0.00022407]
[1738831358785,1.73749699,98195.0,98194.0,0.00022407]
[1738831358942,1.73349699,98195.0,98194.0,0.00022407]
[1738831359294,1.72909801,98195.0,98194.0,0.00022407]
[1738831359445,1.62659436,98195.0,98194.0,0.00022407]
[1738831364966,1.63411436,98195.0,98194.0,0.00022407]
[1738831367471,1.48135736,98195.0,98194.0,0.00022407]
[1738831367751,1.50451436,98195.0,98194.0,0.00022407]
[1738831375309,1.54436534,98195.0,98194.0,0.00022407]
[1738831375733,1.50451436,98195.0,98194.0,0.00022407]
[1738831383452,1.35175736,98195.0,98194.0,0.00022407]
[1738831383660,1.19423736,98195.0,98194.0,0.15298207]
[1738831383860,1.09423736,98195.0,98194.0,0.15284694]
[1738831384060,0.99925371,98195.0,98194.0,0.15284694]
[1738831384260,0.89925371,98195.0,98194.0,0.23294694]
[1738831384913,0.84981,98195.0,98194.0,0.23294694]
[1738831385300,0.84781,98195.0,98194.0,0.23294694]
[1738831385594,0.84181,98195.0,98194.0,0.23294694]
[1738831385806,0.84381,98195.0,98194.0,0.23294694]
[1738831386226,0.84181,98195.0,98194.0,0.23294694]
[1738831386445,0.51871,98195.0,98194.0,0.23294694]
[1738831386619,0.51971,98195.0,98194.0,0.23294694]
[1738831388604,0.51771,98195.0,98194.0,0.23294694]
[1738831388842,0.51671,98195.0,98194.0,0.23294694]
[1738831389059,0.51671,98195.0,98194.0,0.23494694]
[1738831389361,0.50919,98195.0,98194.0,0.23394694]
[1738831389530,0.50919,98195.0,98194.0,0.23694694]
[1738831389733,0.50919,98195.0,98194.0,0.23594694]
[1738831389935,0.50919,98195.0,98194.0,0.23794694]
[1738831391800,0.50919,98195.0,98194.0,0.23294694]
[1738831391997,0.50919,98195.0,98194.0,0.23494694]
[1738831392206,0.50919,98195.0,98194.0,0.23794694]
[1738831393257,0.50919,98195.0,98194.0,0.15784694]
[1738831394868,0.50919,98195.0,98194.0,0.15284694]
[1738831395072,0.50919,98195.0,98194.0,0.15384694]
[1738831395354,0.61169365,98195.0,98194.0,0.00408894]
[1738831395584,1.22850503,98195.0,98194.0,8.894e-05]
[1738831395793,1.37850503,98195.0,98194.0,8.894e-05]
[1738831395999,1.37950503,98195.0,98194.0,8.894e-05]
[1738831396173,1.42789158,98195.0,98194.0,8.894e-05]
[1738831396983,1.43089158,98195.0,98194.0,8.894e-05]
[1738831397852,1.3392372,98195.0,98194.0,8.894e-05]
[1738831398058,1.4187372,98195.0,98194.0,8.894e-05]
[1738831398274,1.4177372,98195.0,98194.0,8.894e-05]
[1738831398577,1.4257372,98195.0,98194.0,8.894e-05]
[1738831399103,1.4177372,98195.0,98194.0,8.894e-05]
[1738831399379,1.4257372,98195.0,98194.0,8.894e-05]
[1738831401336,1.52824085,98195.0,98194.0,8.894e-05]
[1738831402577,1.4257372,98195.0,98194.0,8.894e-05]
[1738831403323,1.425844,98195.0,98194.0,8.894e-05]
[1738831414078,1.417844,98195.0,98194.0,8.894e-05]
[1738831414420,1.425844,98195.0,98194.0,8.894e-05]
[1738831419046,1.45623441,98195.0,98194.0,8.894e-05]
[1738831420449,1.425844,98195.0,98194.0,8.894e-05]
[1738831421241,1.45422758,98195.0,98194.0,8.894e-05]
[1738831423451,1.425844,98195.0,98194.0,8.894e-05]
[1738831453174,1.344344,98195.0,98194.0,8.894e-05]
[1738831457348,1.31395228,98195.0,98194.0,8.894e-05]
[1738831459124,1.11389528,98195.0,98194.0,8.894e-05]
[1738831459331,0.74631528,98195.0,98194.0,0.15284694]
[1738831459982,0.64631528,98195.0,98194.0,0.15284694]
[1738831460142,0.74431528,98195.0,98194.0,0.15284694]
[1738831460599,0.73831528,98195.0,98194.0,0.15284694]
[1738831461094,0.74431528,98195.0,98194.0,0.15284694]
[1738831462102,0.74631528,98195.0,98194.0,0.15284694]
[1738831462459,0.74431528,98195.0,98194.0,0.15284694]
[1738831462945,0.74631528,98195.0,98194.0,0.15284694]
[1738831465429,0.64631528,98195.0,98194.0,0.15284694]
[1738831466212,0.64631528,98195.0,98194.0,8.894e-05]
[1738831466420,0.79907228,98195.0,98194.0,8.894e-05]
[1738831466621,0.64631528,98195.0,98194.0,8.894e-05]
[1738831468635,0.67676147,98195.0,98194.0,8.894e-05]
[1738831469543,0.82951847,98195.0,98194.0,8.894e-05]
[1738831470542,0.67676147,98195.0,98194.0,8.894e-05]
[1738831470866,0.82951847,98195.0,98194.0,8.894e-05]
[1738831471001,0.67676147,98195.0,98194.0,8.894e-05]
[1738831472039,0.82951847,98195.0,98194.0,8.894e-05]
[1738831475488,1.15461847,98195.0,98194.0,8.894e-05]
[1738831479435,1.00186147,98195.0,98194.0,8.894e-05]
[1738831480634,1.15461847,98195.0,98194.0,8.894e-05]
[1738831482419,1.15461847,98195.0,98183.0,0.00022407]
[1738831482420,0.1,98184.0,98183.0,0.00022407]
[1738831482623,1.76007765,98184.0,98183.0,0.00022407]
[1738831482826,2.26926765,98184.0,98183.0,0.00022407]
[1738831483436,2.30095837,98184.0,98183.0,0.00022407]
[1738831483888,2.30795837,98184.0,98183.0,0.00022407]
[1738831484078,2.40346202,98184.0,98183.0,0.00022407]
[1738831484225,2.42265643,98184.0,98183.0,0.00022407]
[1738831484426,0.502816,98157.0,98150.0,0.08148839]
[1738831484633,1.27648965,98157.0,98156.0,0.0005719]
[1738831486546,1.32593067,98157.0,98156.0,0.0005719]
[1738831486952,1.32893067,98157.0,98156.0,0.0005719]
[1738831487152,1.31945067,98157.0,98156.0,0.0005719]
[1738831487356,1.32693067,98157.0,98156.0,0.0005719]
[1738831487586,1.32893067,98157.0,98156.0,0.0005719]
[1738831488005,1.02711467,98157.0,98156.0,0.0005719]
[1738831488205,1.02711467,98157.0,98156.0,0.1533889]
[1738831488359,1.02711467,98157.0,98156.0,0.0005719]
[1738831489304,0.97767365,98157.0,98156.0,0.0005719]
[1738831489913,0.97767365,98157.0,98156.0,0.1533889]
[1738831490299,1.30277365,98157.0,98156.0,0.1533889]
[1738831490731,1.19529365,98157.0,98156.0,0.1533889]
[1738831490886,1.20277365,98157.0,98156.0,0.1533889]
[1738831491082,1.19529365,98157.0,98156.0,0.1533889]
[1738831491283,1.20277365,98157.0,98156.0,0.1533889]